[Event "Titled Tuesday Blitz October 11 Late 2022"]
[White "Gilmanov, Mansur"]
[Black "Shohat, Yotam"]
[WhiteFideId "4166868"]
[BlackFideId "2813955"]
[WhiteElo "2377"]
[BlackElo "2199"]
[Result "1-0"]
[Round "06"]
[TimeControl "180+1"]
[Date "2022.10.12"]
[WhiteClock "0:00:16"]
[BlackClock "0:00:01"]

1. d4 {[%clk 0:03:00]}  Nf6 {[%clk 0:02:59]} 2. Bg5 {[%clk 0:03:00]}  d5 {[%clk 0:02:58]} 3. Bxf6 {[%clk 0:02:57]}  gxf6 {[%clk 0:02:58]} 4. e3 {[%clk 0:02:58]}  c5 {[%clk 0:02:58]} 5. dxc5 {[%clk 0:02:53]}  e6 {[%clk 0:02:57]} 6. b4 {[%clk 0:02:52]}  a5 {[%clk 0:02:54]} 7. c3 {[%clk 0:02:52]}  b6 {[%clk 0:02:42]} 8. Bb5+ {[%clk 0:02:37]}  Bd7 {[%clk 0:02:40]} 9. Qa4 {[%clk 0:02:21]}  bxc5 {[%clk 0:02:24]} 10. bxc5 {[%clk 0:02:20]}  Bxc5 {[%clk 0:02:21]} 11. Nd2 {[%clk 0:02:18]}  Bxb5 {[%clk 0:02:11]} 12. Qxb5+ {[%clk 0:02:17]}  Nd7 {[%clk 0:02:12]} 13. Ngf3 {[%clk 0:02:15]}  Qb6 {[%clk 0:02:06]} 14. Qa4 {[%clk 0:02:13]}  Ke7 {[%clk 0:01:56]} 15. O-O {[%clk 0:02:11]}  Bd6 {[%clk 0:01:41]} 16. Rab1 {[%clk 0:02:08]}  Qc7 {[%clk 0:01:41]} 17. c4 {[%clk 0:02:07]}  Nc5 {[%clk 0:01:40]} 18. Qc2 {[%clk 0:02:02]}  Na6 {[%clk 0:01:35]} 19. Rfc1 {[%clk 0:01:55]}  Ba3 {[%clk 0:01:30]} 20. Rd1 {[%clk 0:01:44]}  Bb4 {[%clk 0:00:52]} 21. Qd3 {[%clk 0:01:25]}  Nc5 {[%clk 0:00:44]} 22. Qd4 {[%clk 0:01:25]}  e5 {[%clk 0:00:38]} 23. Qh4 {[%clk 0:01:20]}  Rad8 {[%clk 0:00:26]} 24. cxd5 {[%clk 0:01:08]}  Rxd5 {[%clk 0:00:27]} 25. Nc4 {[%clk 0:00:51]}  Rhd8 {[%clk 0:00:20]} 26. Rxd5 {[%clk 0:00:44]}  Rxd5 {[%clk 0:00:21]} 27. e4 {[%clk 0:00:42]}  Nxe4 {[%clk 0:00:04]} 28. Qxe4 {[%clk 0:00:41]}  Rc5 {[%clk 0:00:05]} 29. Ne3 {[%clk 0:00:36]}  Rc1+ {[%clk 0:00:04]} 30. Rxc1 {[%clk 0:00:37]}  Qxc1+ {[%clk 0:00:05]} 31. Nf1 {[%clk 0:00:38]}  Bc5 {[%clk 0:00:05]} 32. Qe2 {[%clk 0:00:30]}  a4 {[%clk 0:00:04]} 33. g3 {[%clk 0:00:28]}  a3 {[%clk 0:00:04]} 34. Kg2 {[%clk 0:00:28]}  Qb2 {[%clk 0:00:05]} 35. Qxb2 {[%clk 0:00:25]}  axb2 {[%clk 0:00:05]} 36. N1d2 {[%clk 0:00:25]}  Bb4 {[%clk 0:00:03]} 37. Nb1 {[%clk 0:00:25]}  e4 {[%clk 0:00:03]} 38. Nd4 {[%clk 0:00:20]}  Kd6 {[%clk 0:00:03]} 39. Nc2 {[%clk 0:00:20]}  Bc5 {[%clk 0:00:03]} 40. Kf1 {[%clk 0:00:19]}  Kd5 {[%clk 0:00:03]} 41. Ke2 {[%clk 0:00:19]}  Kc4 {[%clk 0:00:04]} 42. Ne3+ {[%clk 0:00:16]}  Kb4 {[%clk 0:00:02]} 43. Kd2 {[%clk 0:00:16]}  f5 {[%clk 0:00:01]} 44. Kc2 {[%clk 0:00:16]} 1-0


[Site "https://www.chess.com"]

[Event "Titled Tuesday Blitz October 11 Late 2022"]
[White "Girsh, Daniel"]
[Black "Wadsworth, Matthew J"]
[WhiteFideId "30949190"]
[BlackFideId "415804"]
[WhiteElo "2075"]
[BlackElo "2367"]
[Result "0-1"]
[Round "06"]
[TimeControl "180+1"]
[Date "2022.10.12"]
[WhiteClock "0:00:46"]
[BlackClock "0:00:14"]

1. d4 {[%clk 0:03:00]}  d5 {[%clk 0:02:59]} 2. Nc3 {[%clk 0:03:01]}  Nf6 {[%clk 0:02:58]} 3. Bf4 {[%clk 0:03:01]}  c6 {[%clk 0:02:58]} 4. e3 {[%clk 0:03:01]}  Qb6 {[%clk 0:02:59]} 5. Na4 {[%clk 0:02:55]}  Qa5+ {[%clk 0:02:58]} 6. c3 {[%clk 0:02:55]}  b5 {[%clk 0:02:46]} 7. Nc5 {[%clk 0:02:54]}  Nbd7 {[%clk 0:02:43]} 8. b4 {[%clk 0:02:54]}  Qa3 {[%clk 0:02:36]} 9. Qb3 {[%clk 0:02:50]}  Qxb3 {[%clk 0:02:36]} 10. axb3 {[%clk 0:02:51]}  Nxc5 {[%clk 0:02:34]} 11. bxc5 {[%clk 0:02:47]}  a5 {[%clk 0:02:30]} 12. Bd3 {[%clk 0:02:44]}  e6 {[%clk 0:02:27]} 13. Ne2 {[%clk 0:02:35]}  Be7 {[%clk 0:02:26]} 14. Bc7 {[%clk 0:02:30]}  Bd8 {[%clk 0:02:26]} 15. Bxd8 {[%clk 0:02:28]}  Kxd8 {[%clk 0:02:27]} 16. Kd2 {[%clk 0:02:28]}  Re8 {[%clk 0:02:25]} 17. Ra2 {[%clk 0:02:25]}  Re7 {[%clk 0:02:25]} 18. Rha1 {[%clk 0:02:24]}  Rea7 {[%clk 0:02:26]} 19. Nf4 {[%clk 0:02:10]}  Ke7 {[%clk 0:02:22]} 20. Kc2 {[%clk 0:01:55]}  g6 {[%clk 0:02:19]} 21. h3 {[%clk 0:01:53]}  Nd7 {[%clk 0:02:18]} 22. Ne2 {[%clk 0:01:49]}  e5 {[%clk 0:02:17]} 23. f4 {[%clk 0:01:46]}  f6 {[%clk 0:02:17]} 24. Ng3 {[%clk 0:01:45]}  Nf8 {[%clk 0:02:07]} 25. c4 {[%clk 0:01:38]}  dxc4 {[%clk 0:01:51]} 26. bxc4 {[%clk 0:01:38]}  bxc4 {[%clk 0:01:50]} 27. Bxc4 {[%clk 0:01:38]}  Be6 {[%clk 0:01:49]} 28. Kc3 {[%clk 0:01:35]}  Bxc4 {[%clk 0:01:31]} 29. Kxc4 {[%clk 0:01:36]}  exf4 {[%clk 0:01:18]} 30. exf4 {[%clk 0:01:36]}  f5 {[%clk 0:01:19]} 31. Re1+ {[%clk 0:01:32]}  Kf7 {[%clk 0:01:14]} 32. d5 {[%clk 0:01:31]}  cxd5+ {[%clk 0:01:13]} 33. Kxd5 {[%clk 0:01:32]}  a4 {[%clk 0:01:12]} 34. Ne2 {[%clk 0:01:29]}  Ne6 {[%clk 0:01:10]} 35. Nc3 {[%clk 0:01:18]}  Rd8+ {[%clk 0:00:58]} 36. Kc4 {[%clk 0:01:16]}  a3 {[%clk 0:00:45]} 37. Nb5 {[%clk 0:01:12]}  Ra4+ {[%clk 0:00:45]} 38. Kb3 {[%clk 0:01:12]}  Nxc5+ {[%clk 0:00:44]} 39. Kc2 {[%clk 0:01:03]}  Rc4+ {[%clk 0:00:42]} 40. Kb1 {[%clk 0:00:59]}  Rb4+ {[%clk 0:00:37]} 41. Kc2 {[%clk 0:00:58]}  Rxb5 {[%clk 0:00:36]} 42. Rxa3 {[%clk 0:00:58]}  Rd7 {[%clk 0:00:31]} 43. Rc3 {[%clk 0:00:57]}  Ne4 {[%clk 0:00:31]} 44. Rc6 {[%clk 0:00:56]}  Rd2+ {[%clk 0:00:25]} 45. Kc1 {[%clk 0:00:56]}  Rbb2 {[%clk 0:00:22]} 46. Rc7+ {[%clk 0:00:53]}  Ke6 {[%clk 0:00:20]} 47. g4 {[%clk 0:00:52]}  Ra2 {[%clk 0:00:18]} 48. gxf5+ {[%clk 0:00:52]}  gxf5 {[%clk 0:00:18]} 49. Kb1 {[%clk 0:00:50]}  Kd6 {[%clk 0:00:15]} 50. Rc4 {[%clk 0:00:49]}  Kd5 {[%clk 0:00:15]} 51. Rc8 {[%clk 0:00:49]}  Kd4 {[%clk 0:00:13]} 52. Rg1 {[%clk 0:00:43]}  Nc3+ {[%clk 0:00:12]} 53. Rxc3 {[%clk 0:00:42]}  Kxc3 {[%clk 0:00:12]} 54. Rg3+ {[%clk 0:00:42]}  Kd4 {[%clk 0:00:13]} 55. Rb3 {[%clk 0:00:42]}  Rh2 {[%clk 0:00:11]} 56. Rb4+ {[%clk 0:00:39]}  Ke3 {[%clk 0:00:10]} 57. Rb3+ {[%clk 0:00:39]}  Kxf4 {[%clk 0:00:10]} 58. Rb4+ {[%clk 0:00:40]}  Kg5 {[%clk 0:00:10]} 59. h4+ {[%clk 0:00:40]}  Kh5 {[%clk 0:00:11]} 60. Rb5 {[%clk 0:00:39]}  Raf2 {[%clk 0:00:11]} 61. Rc5 {[%clk 0:00:39]}  Rf1+ {[%clk 0:00:11]} 62. Rc1 {[%clk 0:00:39]}  Rxc1+ {[%clk 0:00:12]} 63. Kxc1 {[%clk 0:00:40]}  Kxh4 {[%clk 0:00:12]} 64. Kd1 {[%clk 0:00:41]}  f4 {[%clk 0:00:12]} 65. Ke1 {[%clk 0:00:42]}  f3 {[%clk 0:00:13]} 66. Kf1 {[%clk 0:00:43]}  Kg3 {[%clk 0:00:13]} 67. Kg1 {[%clk 0:00:44]}  f2+ {[%clk 0:00:13]} 68. Kf1 {[%clk 0:00:44]}  Rh1+ {[%clk 0:00:14]} 69. Ke2 {[%clk 0:00:45]}  f1=Q+ {[%clk 0:00:14]} 70. Ke3 {[%clk 0:00:46]}  Qf4+ {[%clk 0:00:14]} 71. Ke2 {[%clk 0:00:46]}  Rh2+ {[%clk 0:00:14]} 72. Kd1 {[%clk 0:00:46]}  Qf1# {[%clk 0:00:14]} 0-1


[Site "https://www.chess.com"]

[Event "Titled Tuesday Blitz October 11 Late 2022"]
[White "Gokerkan, Cem Kaan"]
[Black "Suder, Jakub"]
[WhiteFideId "6336760"]
[BlackFideId "1195310"]
[WhiteElo "2365"]
[BlackElo "2174"]
[Result "1-0"]
[Round "06"]
[TimeControl "180+1"]
[Date "2022.10.11"]
[WhiteClock "0:00:07"]
[BlackClock "0:00:04"]

1. c4 {[%clk 0:03:00]}  e6 {[%clk 0:02:59]} 2. Nc3 {[%clk 0:03:01]}  d5 {[%clk 0:02:59]} 3. d4 {[%clk 0:03:01]}  a6 {[%clk 0:02:59]} 4. cxd5 {[%clk 0:03:01]}  exd5 {[%clk 0:03:00]} 5. Bf4 {[%clk 0:03:01]}  c6 {[%clk 0:02:59]} 6. e3 {[%clk 0:03:00]}  Bd6 {[%clk 0:03:00]} 7. Bxd6 {[%clk 0:02:59]}  Qxd6 {[%clk 0:03:00]} 8. Bd3 {[%clk 0:02:57]}  Ne7 {[%clk 0:03:01]} 9. Nge2 {[%clk 0:02:56]}  Bf5 {[%clk 0:02:59]} 10. Bxf5 {[%clk 0:02:52]}  Nxf5 {[%clk 0:02:59]} 11. Qd3 {[%clk 0:02:49]}  g6 {[%clk 0:02:58]} 12. Rb1 {[%clk 0:02:47]}  Nd7 {[%clk 0:02:57]} 13. O-O {[%clk 0:02:45]}  O-O {[%clk 0:02:57]} 14. Nf4 {[%clk 0:02:36]}  Rfe8 {[%clk 0:02:51]} 15. Rfc1 {[%clk 0:02:35]}  Qf6 {[%clk 0:02:26]} 16. b4 {[%clk 0:02:02]}  Rec8 {[%clk 0:02:15]} 17. a4 {[%clk 0:01:59]}  Nd6 {[%clk 0:02:15]} 18. b5 {[%clk 0:01:57]}  axb5 {[%clk 0:02:13]} 19. axb5 {[%clk 0:01:56]}  g5 {[%clk 0:02:04]} 20. Nfe2 {[%clk 0:01:46]}  Qe6 {[%clk 0:01:46]} 21. bxc6 {[%clk 0:01:39]}  bxc6 {[%clk 0:01:46]} 22. h3 {[%clk 0:01:33]}  h5 {[%clk 0:01:43]} 23. Ng3 {[%clk 0:01:29]}  h4 {[%clk 0:01:40]} 24. Nf1 {[%clk 0:01:30]}  f5 {[%clk 0:01:38]} 25. Nd2 {[%clk 0:01:28]}  Ne4 {[%clk 0:01:23]} 26. Ncxe4 {[%clk 0:01:26]}  fxe4 {[%clk 0:01:21]} 27. Qe2 {[%clk 0:01:25]}  Nf6 {[%clk 0:01:20]} 28. Nb3 {[%clk 0:01:22]}  Rab8 {[%clk 0:01:16]} 29. Nc5 {[%clk 0:01:22]}  Qf5 {[%clk 0:01:15]} 30. Rxb8 {[%clk 0:01:18]}  Rxb8 {[%clk 0:01:15]} 31. Na4 {[%clk 0:00:46]}  g4 {[%clk 0:01:04]} 32. hxg4 {[%clk 0:00:34]}  Nxg4 {[%clk 0:01:04]} 33. f3 {[%clk 0:00:29]}  exf3 {[%clk 0:00:53]} 34. gxf3 {[%clk 0:00:30]}  Nf6 {[%clk 0:00:46]} 35. Rxc6 {[%clk 0:00:30]}  Rb1+ {[%clk 0:00:27]} 36. Kh2 {[%clk 0:00:30]}  Nh5 {[%clk 0:00:27]} 37. Qa6 {[%clk 0:00:18]}  Qxf3 {[%clk 0:00:05]} 38. Qc8+ {[%clk 0:00:09]}  Kh7 {[%clk 0:00:04]} 39. Rc7+ {[%clk 0:00:05]}  Ng7 {[%clk 0:00:05]} 40. Rxg7+ {[%clk 0:00:05]}  Kxg7 {[%clk 0:00:06]} 41. Qc7+ {[%clk 0:00:03]}  Kg6 {[%clk 0:00:06]} 42. Qd6+ {[%clk 0:00:04]}  Kg5 {[%clk 0:00:06]} 43. Qe5+ {[%clk 0:00:03]}  Qf5 {[%clk 0:00:06]} 44. Qg7+ {[%clk 0:00:03]}  Qg6 {[%clk 0:00:06]} 45. Qe5+ {[%clk 0:00:03]}  Kh6 {[%clk 0:00:07]} 46. Qh8+ {[%clk 0:00:03]}  Qh7 {[%clk 0:00:06]} 47. Qf6+ {[%clk 0:00:03]}  Kh5 {[%clk 0:00:06]} 48. Qf3+ {[%clk 0:00:03]}  Kg5 {[%clk 0:00:06]} 49. Nc3 {[%clk 0:00:02]}  Rb2+ {[%clk 0:00:05]} 50. Kg1 {[%clk 0:00:02]}  Qc2 {[%clk 0:00:04]} 51. Qxd5+ {[%clk 0:00:02]}  Kf6 {[%clk 0:00:04]} 52. Qe5+ {[%clk 0:00:03]}  Kg6 {[%clk 0:00:04]} 53. Qe6+ {[%clk 0:00:03]}  Kg5 {[%clk 0:00:05]} 54. Ne4+ {[%clk 0:00:04]}  Kh5 {[%clk 0:00:03]} 55. Qf5+ {[%clk 0:00:04]}  Kh6 {[%clk 0:00:03]} 56. Qg5+ {[%clk 0:00:05]}  Kh7 {[%clk 0:00:03]} 57. Nf6+ {[%clk 0:00:06]}  Kh8 {[%clk 0:00:04]} 58. Qg8# {[%clk 0:00:07]} 1-0


[Site "https://www.chess.com"]

[Event "Titled Tuesday Blitz October 11 Late 2022"]
[White "Gonzalez, Francisco Silva"]
[Black "Poliakova, Varvara"]
[WhiteFideId "1512285"]
[BlackFideId "13518313"]
[WhiteElo "2159"]
[BlackElo "1938"]
[Result "1-0"]
[Round "06"]
[TimeControl "180+1"]
[Date "2022.10.12"]
[WhiteClock "0:00:35"]
[BlackClock "0:00:05"]

1. d4 {[%clk 0:02:55]}  f5 {[%clk 0:02:59]} 2. e3 {[%clk 0:02:54]}  Nf6 {[%clk 0:02:57]} 3. c4 {[%clk 0:02:54]}  d6 {[%clk 0:02:57]} 4. b3 {[%clk 0:02:53]}  g6 {[%clk 0:02:58]} 5. Bb2 {[%clk 0:02:53]}  Bg7 {[%clk 0:02:58]} 6. Nh3 {[%clk 0:02:52]}  O-O {[%clk 0:02:57]} 7. Nd2 {[%clk 0:02:50]}  Nc6 {[%clk 0:02:57]} 8. Qc2 {[%clk 0:02:47]}  e5 {[%clk 0:02:57]} 9. dxe5 {[%clk 0:02:46]}  dxe5 {[%clk 0:02:58]} 10. O-O-O {[%clk 0:02:46]}  Qe7 {[%clk 0:02:56]} 11. a3 {[%clk 0:02:44]}  a5 {[%clk 0:02:53]} 12. Be2 {[%clk 0:02:43]}  Kh8 {[%clk 0:02:31]} 13. f3 {[%clk 0:02:38]}  Be6 {[%clk 0:02:27]} 14. Kb1 {[%clk 0:02:36]}  Nd7 {[%clk 0:02:13]} 15. Ka1 {[%clk 0:02:20]}  Nc5 {[%clk 0:02:13]} 16. Nb1 {[%clk 0:02:20]}  a4 {[%clk 0:02:07]} 17. b4 {[%clk 0:02:18]}  Nb3+ {[%clk 0:02:07]} 18. Ka2 {[%clk 0:02:18]}  b5 {[%clk 0:02:00]} 19. Nd2 {[%clk 0:02:13]}  Nxd2 {[%clk 0:01:46]} 20. Rxd2 {[%clk 0:02:11]}  Bh6 {[%clk 0:01:27]} 21. f4 {[%clk 0:02:07]}  Qf7 {[%clk 0:01:20]} 22. Rc1 {[%clk 0:01:46]}  Rad8 {[%clk 0:01:15]} 23. Ka1 {[%clk 0:01:40]}  Rxd2 {[%clk 0:01:08]} 24. Qxd2 {[%clk 0:01:40]}  bxc4 {[%clk 0:01:07]} 25. b5 {[%clk 0:01:39]}  Nd8 {[%clk 0:00:53]} 26. Bxe5+ {[%clk 0:01:36]}  Bg7 {[%clk 0:00:53]} 27. Qc3 {[%clk 0:01:37]}  Bxe5 {[%clk 0:00:43]} 28. Qxe5+ {[%clk 0:01:36]}  Qg7 {[%clk 0:00:44]} 29. Qc3 {[%clk 0:01:28]}  Nb7 {[%clk 0:00:41]} 30. Ng5 {[%clk 0:01:28]}  Bg8 {[%clk 0:00:39]} 31. Qxg7+ {[%clk 0:01:26]}  Kxg7 {[%clk 0:00:40]} 32. Bxc4 {[%clk 0:01:25]}  h6 {[%clk 0:00:31]} 33. Nf3 {[%clk 0:01:18]}  Bxc4 {[%clk 0:00:27]} 34. Rxc4 {[%clk 0:01:17]}  Rf7 {[%clk 0:00:27]} 35. Ne5 {[%clk 0:01:17]}  Re7 {[%clk 0:00:28]} 36. Rxa4 {[%clk 0:01:16]}  Nd6 {[%clk 0:00:28]} 37. Rb4 {[%clk 0:01:16]}  g5 {[%clk 0:00:24]} 38. a4 {[%clk 0:01:16]}  Nb7 {[%clk 0:00:21]} 39. Kb2 {[%clk 0:01:14]}  Nc5 {[%clk 0:00:20]} 40. a5 {[%clk 0:01:09]}  Re8 {[%clk 0:00:19]} 41. a6 {[%clk 0:01:08]}  Kf6 {[%clk 0:00:18]} 42. Rc4 {[%clk 0:01:06]}  Ne6 {[%clk 0:00:19]} 43. Rc6 {[%clk 0:01:05]}  gxf4 {[%clk 0:00:17]} 44. exf4 {[%clk 0:01:04]}  Ke7 {[%clk 0:00:18]} 45. a7 {[%clk 0:00:58]}  Ra8 {[%clk 0:00:17]} 46. Rc4 {[%clk 0:00:49]}  Kd6 {[%clk 0:00:15]} 47. Nc6 {[%clk 0:00:49]}  Nc5 {[%clk 0:00:15]} 48. Ka3 {[%clk 0:00:44]}  Ne4 {[%clk 0:00:12]} 49. Kb4 {[%clk 0:00:44]}  Nf6 {[%clk 0:00:10]} 50. Rd4+ {[%clk 0:00:43]}  Ke6 {[%clk 0:00:08]} 51. Ka5 {[%clk 0:00:40]}  Nd5 {[%clk 0:00:08]} 52. Ka6 {[%clk 0:00:40]}  Nb6 {[%clk 0:00:07]} 53. Kb7 {[%clk 0:00:39]}  Rg8 {[%clk 0:00:07]} 54. Kxc7 {[%clk 0:00:35]}  Nd5+ {[%clk 0:00:04]} 55. Rxd5 {[%clk 0:00:35]}  Kxd5 {[%clk 0:00:05]} 56. Ne7+ {[%clk 0:00:35]} 1-0


[Site "https://www.chess.com"]

[Event "Titled Tuesday Blitz October 11 Late 2022"]
[White "Haszon, David"]
[Black "Curtis, John"]
[WhiteFideId "733610"]
[BlackFideId "3200256"]
[WhiteElo "2211"]
[BlackElo "2203"]
[Result "0-1"]
[Round "06"]
[TimeControl "180+1"]
[Date "2022.10.12"]
[WhiteClock "0:00:04"]
[BlackClock "0:00:03"]

1. e4 {[%clk 0:03:00]}  c5 {[%clk 0:02:54]} 2. Nf3 {[%clk 0:03:00]}  d6 {[%clk 0:02:53]} 3. d4 {[%clk 0:03:01]}  cxd4 {[%clk 0:02:53]} 4. Nxd4 {[%clk 0:03:02]}  Nf6 {[%clk 0:02:53]} 5. f3 {[%clk 0:03:02]}  e5 {[%clk 0:02:52]} 6. Nb3 {[%clk 0:03:02]}  d5 {[%clk 0:02:50]} 7. Bg5 {[%clk 0:03:01]}  dxe4 {[%clk 0:02:47]} 8. Qxd8+ {[%clk 0:03:02]}  Kxd8 {[%clk 0:02:47]} 9. Nc3 {[%clk 0:03:00]}  exf3 {[%clk 0:02:45]} 10. O-O-O+ {[%clk 0:03:01]}  Bd7 {[%clk 0:02:43]} 11. gxf3 {[%clk 0:02:54]}  Be7 {[%clk 0:02:35]} 12. Bc4 {[%clk 0:02:51]}  Rf8 {[%clk 0:02:29]} 13. Rhg1 {[%clk 0:02:31]}  Kc8 {[%clk 0:02:03]} 14. Be3 {[%clk 0:02:11]}  Be6 {[%clk 0:01:16]} 15. Bxe6+ {[%clk 0:02:01]}  fxe6 {[%clk 0:01:16]} 16. Rxg7 {[%clk 0:02:02]}  Nc6 {[%clk 0:01:16]} 17. Nc5 {[%clk 0:01:46]}  b6 {[%clk 0:00:48]} 18. Nxe6 {[%clk 0:01:44]}  Rg8 {[%clk 0:00:45]} 19. Rxg8+ {[%clk 0:01:36]}  Nxg8 {[%clk 0:00:45]} 20. Nd5 {[%clk 0:01:30]}  Kb7 {[%clk 0:00:40]} 21. Nxe7 {[%clk 0:01:24]}  Ncxe7 {[%clk 0:00:36]} 22. Rd7+ {[%clk 0:01:24]}  Kc6 {[%clk 0:00:36]} 23. Rd1 {[%clk 0:01:04]}  Nd5 {[%clk 0:00:34]} 24. Bd2 {[%clk 0:01:03]}  Re8 {[%clk 0:00:33]} 25. Ng5 {[%clk 0:01:02]}  h6 {[%clk 0:00:33]} 26. Ne4 {[%clk 0:01:01]}  Rf8 {[%clk 0:00:32]} 27. Rf1 {[%clk 0:00:55]}  b5 {[%clk 0:00:32]} 28. Nc3 {[%clk 0:00:47]}  Nxc3 {[%clk 0:00:30]} 29. Bxc3 {[%clk 0:00:48]}  Rf5 {[%clk 0:00:30]} 30. Kd2 {[%clk 0:00:47]}  Rh5 {[%clk 0:00:28]} 31. Rf2 {[%clk 0:00:46]}  Kd5 {[%clk 0:00:28]} 32. Ke3 {[%clk 0:00:46]}  Ne7 {[%clk 0:00:28]} 33. Rd2+ {[%clk 0:00:46]}  Ke6 {[%clk 0:00:28]} 34. Rg2 {[%clk 0:00:46]}  Nd5+ {[%clk 0:00:28]} 35. Kd2 {[%clk 0:00:35]}  Rh3 {[%clk 0:00:27]} 36. Ba5 {[%clk 0:00:27]}  Rxf3 {[%clk 0:00:19]} 37. Rg6+ {[%clk 0:00:27]}  Kf5 {[%clk 0:00:19]} 38. Rxh6 {[%clk 0:00:26]}  e4 {[%clk 0:00:17]} 39. Rh5+ {[%clk 0:00:24]}  Ke6 {[%clk 0:00:17]} 40. b3 {[%clk 0:00:20]}  Rf2+ {[%clk 0:00:15]} 41. Kc1 {[%clk 0:00:19]}  Ne3 {[%clk 0:00:12]} 42. Rc5 {[%clk 0:00:16]}  Rxh2 {[%clk 0:00:11]} 43. Bd2 {[%clk 0:00:11]}  Rh1+ {[%clk 0:00:09]} 44. Kb2 {[%clk 0:00:12]}  Nf1 {[%clk 0:00:09]} 45. Bg5 {[%clk 0:00:11]}  e3 {[%clk 0:00:09]} 46. Bxe3 {[%clk 0:00:09]}  Nxe3 {[%clk 0:00:09]} 47. Rxb5 {[%clk 0:00:10]}  Nd5 {[%clk 0:00:09]} 48. c4 {[%clk 0:00:10]}  Ne3 {[%clk 0:00:08]} 49. Rb7 {[%clk 0:00:10]}  Rh2+ {[%clk 0:00:09]} 50. Ka3 {[%clk 0:00:10]}  Nc2+ {[%clk 0:00:09]} 51. Ka4 {[%clk 0:00:09]}  Nd4 {[%clk 0:00:09]} 52. a3 {[%clk 0:00:09]}  Nc6 {[%clk 0:00:09]} 53. b4 {[%clk 0:00:08]}  Rh4 {[%clk 0:00:06]} 54. Kb5 {[%clk 0:00:07]}  Kd6 {[%clk 0:00:05]} 55. Rg7 {[%clk 0:00:07]}  Nd4+ {[%clk 0:00:05]} 56. Ka5 {[%clk 0:00:08]}  Rh3 {[%clk 0:00:05]} 57. c5+ {[%clk 0:00:07]}  Kc6 {[%clk 0:00:05]} 58. a4 {[%clk 0:00:08]}  Nb3+ {[%clk 0:00:05]} 59. Ka6 {[%clk 0:00:08]}  Rh8 {[%clk 0:00:05]} 60. Rg6+ {[%clk 0:00:07]}  Kd5 {[%clk 0:00:05]} 61. Rd6+ {[%clk 0:00:07]}  Ke5 {[%clk 0:00:03]} 62. Rd7 {[%clk 0:00:07]}  Rb8 {[%clk 0:00:04]} 63. Re7+ {[%clk 0:00:05]}  Kf6 {[%clk 0:00:03]} 64. Rxa7 {[%clk 0:00:04]}  Rxb4 {[%clk 0:00:03]} 65. a5 {[%clk 0:00:04]}  Nxc5# {[%clk 0:00:03]} 0-1


[Site "https://www.chess.com"]

[Event "Titled Tuesday Blitz October 11 Late 2022"]
[White "Hemam, Moulaye Brahim"]
[Black "Petrova, Irina"]
[WhiteFideId "19600054"]
[BlackFideId "14124122"]
[WhiteElo "2088"]
[BlackElo "2023"]
[Result "0-1"]
[Round "06"]
[TimeControl "180+1"]
[Date "2022.10.12"]
[WhiteClock "0:00:16"]
[BlackClock "0:00:06"]

1. e4 {[%clk 0:02:59]}  c5 {[%clk 0:03:00]} 2. Nf3 {[%clk 0:02:59]}  Nc6 {[%clk 0:03:00]} 3. d4 {[%clk 0:02:58]}  cxd4 {[%clk 0:03:01]} 4. Nxd4 {[%clk 0:02:59]}  Nf6 {[%clk 0:03:01]} 5. Nc3 {[%clk 0:02:59]}  e5 {[%clk 0:03:00]} 6. Ndb5 {[%clk 0:02:59]}  d6 {[%clk 0:03:00]} 7. Bg5 {[%clk 0:02:58]}  a6 {[%clk 0:03:00]} 8. Na3 {[%clk 0:02:16]}  b5 {[%clk 0:03:00]} 9. Bxf6 {[%clk 0:02:13]}  gxf6 {[%clk 0:02:59]} 10. Nd5 {[%clk 0:02:11]}  Bg7 {[%clk 0:02:59]} 11. c3 {[%clk 0:02:05]}  f5 {[%clk 0:02:52]} 12. exf5 {[%clk 0:01:57]}  Bxf5 {[%clk 0:02:49]} 13. Bd3 {[%clk 0:01:35]}  Bxd3 {[%clk 0:02:44]} 14. Qxd3 {[%clk 0:01:36]}  O-O {[%clk 0:02:45]} 15. Nc2 {[%clk 0:01:35]}  f5 {[%clk 0:02:45]} 16. Nce3 {[%clk 0:01:34]}  e4 {[%clk 0:02:40]} 17. Qd2 {[%clk 0:01:31]}  f4 {[%clk 0:02:34]} 18. Nc2 {[%clk 0:01:28]}  Qg5 {[%clk 0:02:22]} 19. g3 {[%clk 0:01:24]}  e3 {[%clk 0:02:12]} 20. fxe3 {[%clk 0:01:24]}  fxg3 {[%clk 0:02:08]} 21. O-O-O {[%clk 0:01:23]}  Rae8 {[%clk 0:01:42]} 22. hxg3 {[%clk 0:01:19]}  b4 {[%clk 0:01:34]} 23. cxb4 {[%clk 0:01:09]}  Ne5 {[%clk 0:01:30]} 24. e4 {[%clk 0:00:55]}  Qxd2+ {[%clk 0:01:24]} 25. Rxd2 {[%clk 0:00:54]}  Nc4 {[%clk 0:01:24]} 26. Rdh2 {[%clk 0:00:54]}  h6 {[%clk 0:01:17]} 27. Nc3 {[%clk 0:00:49]}  Rf3 {[%clk 0:01:07]} 28. b5 {[%clk 0:00:18]}  axb5 {[%clk 0:01:06]} 29. Nxb5 {[%clk 0:00:18]}  Ref8 {[%clk 0:00:55]} 30. b3 {[%clk 0:00:17]}  Rf1+ {[%clk 0:00:55]} 31. Ne1 {[%clk 0:00:16]}  Ne3 {[%clk 0:00:41]} 32. Kd2 {[%clk 0:00:16]}  Ng4 {[%clk 0:00:28]} 33. Rxf1 {[%clk 0:00:16]}  Rxf1 {[%clk 0:00:28]} 34. Re2 {[%clk 0:00:16]}  h5 {[%clk 0:00:23]} 35. Nxd6 {[%clk 0:00:15]}  Bh6+ {[%clk 0:00:23]} 36. Kc3 {[%clk 0:00:12]}  Rg1 {[%clk 0:00:18]} 37. Nf5 {[%clk 0:00:12]}  Bg7+ {[%clk 0:00:15]} 38. Nxg7 {[%clk 0:00:12]}  Rxg3+ {[%clk 0:00:15]} 39. Kb2 {[%clk 0:00:11]}  Kxg7 {[%clk 0:00:11]} 40. e5 {[%clk 0:00:12]}  Kf7 {[%clk 0:00:09]} 41. e6+ {[%clk 0:00:12]}  Ke7 {[%clk 0:00:09]} 42. Nc2 {[%clk 0:00:13]}  h4 {[%clk 0:00:08]} 43. a4 {[%clk 0:00:11]}  h3 {[%clk 0:00:08]} 44. a5 {[%clk 0:00:11]}  Rg2 {[%clk 0:00:08]} 45. Rxg2 {[%clk 0:00:09]}  hxg2 {[%clk 0:00:09]} 46. a6 {[%clk 0:00:09]}  g1=Q {[%clk 0:00:09]} 47. b4 {[%clk 0:00:09]}  Qb6 {[%clk 0:00:08]} 48. Kb3 {[%clk 0:00:10]}  Qxa6 {[%clk 0:00:08]} 49. Na3 {[%clk 0:00:11]}  Kxe6 {[%clk 0:00:07]} 50. b5 {[%clk 0:00:12]}  Qb7 {[%clk 0:00:05]} 51. Kb4 {[%clk 0:00:12]}  Ne5 {[%clk 0:00:04]} 52. Nc4 {[%clk 0:00:13]}  Nxc4 {[%clk 0:00:04]} 53. Kxc4 {[%clk 0:00:13]}  Qd5+ {[%clk 0:00:04]} 54. Kb4 {[%clk 0:00:14]}  Qb7 {[%clk 0:00:04]} 55. Kc5 {[%clk 0:00:14]}  Ke5 {[%clk 0:00:05]} 56. b6 {[%clk 0:00:14]}  Ke6 {[%clk 0:00:05]} 57. Kb5 {[%clk 0:00:15]}  Kd6 {[%clk 0:00:05]} 58. Ka5 {[%clk 0:00:16]}  Kc6 {[%clk 0:00:05]} 59. Ka4 {[%clk 0:00:16]}  Qxb6 {[%clk 0:00:06]} 60. Ka3 {[%clk 0:00:16]}  Kc5 {[%clk 0:00:06]} 0-1


[Site "https://www.chess.com"]